fUSD/lending_fUSD_20240618
["ID","MTS","AMOUNT","RATE_DAILY","PERIOD"]
[329805725,1718682678948,-500.0,0.000227,2]
[329805726,1718682678957,-500.0,0.000227,2]
[329805727,1718682678966,-500.0,0.000227,2]
[329805728,1718682678978,-500.0,0.000227,2]
[329805729,1718682678987,-500.0,0.000227,2]
[329805730,1718682678995,-500.0,0.000227,2]
[329805731,1718682679005,-500.0,0.000227,2]
[329805732,1718682679014,-500.0,0.000227,2]
[329805733,1718682679023,-500.0,0.000227,2]
[329805734,1718682679033,-500.0,0.000227,2]
[329805735,1718682679043,-500.0,0.000227,2]
[329805736,1718682679052,-500.0,0.000227,2]
[329805737,1718682679061,-500.0,0.000227,2]
[329805738,1718682679070,-500.0,0.000227,2]
[329805739,1718682679079,-500.0,0.000227,2]
[329805740,1718682679088,-500.0,0.000227,2]
[329805741,1718682679097,-500.0,0.000227,2]
[329805742,1718682679106,-500.0,0.000227,2]
[329805743,1718682679115,-500.0,0.000227,2]
[329805744,1718682679124,-500.0,0.000227,2]
[329805745,1718682679134,-500.0,0.000227,2]
[329805746,1718682679143,-500.0,0.000227,2]
[329805747,1718682679152,-500.0,0.000227,2]
[329805748,1718682679162,-500.0,0.000227,2]
[329805749,1718682679171,-500.0,0.000227,2]
[329805750,1718682679180,-500.0,0.000227,2]
[329805751,1718682679189,-500.0,0.000227,2]
[329805752,1718682679198,-500.0,0.000227,2]
[329805753,1718682679208,-500.0,0.000227,2]
[329805754,1718682679217,-500.0,0.000227,2]
[329805755,1718682679229,-500.0,0.000227,2]
[329805756,1718682679239,-7268.5540107,0.00022723,2]
[329805757,1718682679248,-4571.4099215,0.00022723,2]
[329805758,1718682679258,-3281.9716718,0.00022723,2]
[329805759,1718682679267,-36921.4090027,0.00022723,2]
[329805760,1718682679277,-838.36807576,0.00022736,2]
[329805761,1718682679286,-615.8706235,0.00022736,2]
[329805762,1718682679296,-155.69643398,0.00022737,2]
[329805763,1718682679311,-155.46074476,0.00022737,2]
[329805764,1718682679321,-307.53256226,0.00022737,2]
[329805765,1718682679330,-394.60955051,0.00022737,2]
[329805766,1718682679340,-269.73885961,0.00022737,2]
[329805767,1718682679350,-276.85434466,0.00022739,2]
[329805768,1718682679359,-500.0,0.00022739,3]
[329805769,1718682679368,-528.16009756,0.00022739,3]
[329805770,1718682679379,-497.18934496,0.00022739,3]
[329805771,1718682679389,-395.99448994,0.00022739,3]
[329805772,1718682679399,-500.0,0.00022739,3]
[329805773,1718682679408,-500.0,0.00022739,3]
[329805774,1718682679418,-531.74691077,0.00022739,3]
[329805775,1718682679427,-500.0,0.00022739,3]
[329805776,1718682679437,-500.0,0.00022739,3]
[329805777,1718682679446,-500.0,0.00022739,3]
[329805778,1718682679456,-595.67,0.00022739,3]
[329805779,1718682679465,-500.0,0.00022739,3]
[329805780,1718682679478,-500.0,0.00022739,3]
[329805781,1718682679486,-585.47,0.00022739,3]
[329805782,1718682679496,-398.87010988,0.00022739,3]
[329805783,1718682679505,-500.0,0.00022739,3]
[329805784,1718682679516,-500.0,0.00022739,3]
[329805785,1718682679525,-500.0,0.00022739,3]
[329805786,1718682679535,-501.95,0.00022739,3]
[329805787,1718682679544,-500.0,0.00022739,3]
[329805788,1718682679554,-500.0,0.00022739,3]
[329805789,1718682679563,-500.0,0.00022739,3]
[329805790,1718682679574,-500.0,0.00022739,3]
[329805791,1718682679584,-500.0,0.00022739,3]
[329805792,1718682679594,-500.0,0.00022739,3]
[329805793,1718682679604,-500.0,0.00022739,3]
[329805794,1718682679614,-500.0,0.00022739,3]
[329805795,1718682679626,-500.0,0.00022739,3]
[329805796,1718682679635,-500.0,0.00022739,3]
[329805797,1718682679644,-500.61208019,0.00022739,3]
[329805798,1718682679654,-500.0,0.00022739,3]
[329805799,1718682679663,-582.48,0.00022739,3]
[329805800,1718682679673,-540.1311689,0.00022739,3]
[329805801,1718682679682,-500.0,0.00022739,3]
[329805802,1718682679692,-500.0,0.00022739,3]
[329805803,1718682679701,-500.0,0.00022739,3]
[329805804,1718682679711,-500.0,0.00022739,3]
[329805805,1718682679721,-500.0,0.00022739,3]
[329805806,1718682679731,-717.98,0.00022739,3]
[329805807,1718682679740,-500.0,0.00022739,3]
[329805808,1718682679750,-500.0,0.00022739,3]
[329805809,1718682679759,-778.79,0.00022739,3]
[329805810,1718682679768,-562.19,0.00022739,3]
[329805811,1718682679778,-500.0,0.00022739,3]
[329805812,1718682679787,-500.0,0.00022739,3]
[329805813,1718682679796,-517.12294479,0.00022739,3]
[329805814,1718682679805,-500.0,0.00022739,3]
[329805815,1718682679814,-523.12510117,0.00022739,3]
[329805816,1718682679824,-510.82216334,0.00022739,3]
[329805817,1718682679833,-500.0,0.00022739,3]
[329805818,1718682679842,-500.0,0.00022739,3]
[329805819,1718682679851,-500.0,0.00022739,3]
[329805820,1718682679926,-522.57,0.00022739,3]
[329805821,1718682679936,-564.78403279,0.00022739,3]
[329805822,1718682679945,-500.0,0.00022739,3]
[329805823,1718682679954,-500.0,0.00022739,3]
[329805824,1718682679964,-500.0,0.00022739,3]
[329805825,1718682679975,-500.0,0.00022739,3]
[329805826,1718682679984,-500.0,0.00022739,3]
[329805827,1718682679994,-500.0,0.00022739,3]
[329805828,1718682680003,-500.0,0.00022739,3]
[329805829,1718682680013,-500.0,0.00022739,3]
[329805830,1718682680022,-500.0,0.00022739,3]
[329805831,1718682680031,-531.19,0.00022739,3]
[329805832,1718682680040,-500.0,0.00022739,3]
[329805833,1718682680049,-500.0,0.00022739,3]
[329805834,1718682680058,-500.0,0.00022739,3]
[329805835,1718682680067,-500.0,0.00022739,3]
[329805836,1718682680075,-500.0,0.00022739,3]
[329805837,1718682680084,-521.29,0.00022739,7]
[329805838,1718682680093,-500.0,0.00022739,3]
[329805839,1718682680102,-500.0,0.00022739,3]
[329805840,1718682680111,-500.0,0.00022739,3]
[329805841,1718682680120,-500.0,0.00022739,3]
[329805842,1718682680129,-500.0,0.00022739,3]
[329805843,1718682680139,-500.0,0.00022739,3]
[329805844,1718682680148,-500.0,0.00022739,3]
[329805845,1718682680158,-500.0,0.00022739,3]
[329805846,1718682680168,-500.0,0.00022739,3]
[329805847,1718682680178,-500.0,0.00022739,3]
[329805848,1718682680187,-500.0,0.00022739,3]
[329805849,1718682680197,-500.0,0.00022739,3]
[329805850,1718682680206,-500.0,0.00022739,3]
[329805851,1718682680216,-500.0,0.00022739,3]
[329805852,1718682680227,-590.15,0.00022739,3]
[329805853,1718682680237,-500.0,0.00022739,3]
[329805854,1718682680246,-562.02,0.00022739,3]
[329805855,1718682680255,-500.0,0.00022739,3]
[329805856,1718682680264,-500.0,0.00022739,3]
[329805857,1718682680274,-603.93,0.00022739,3]
[329805858,1718682680283,-500.0,0.00022739,3]
[329805859,1718682680293,-500.0,0.00022739,3]
[329805860,1718682680308,-500.0,0.00022739,3]
[329805861,1718682680318,-500.0,0.00022739,3]
[329805862,1718682680328,-500.0,0.00022739,3]
[329805863,1718682680338,-500.0,0.00022739,3]
[329805864,1718682680350,-500.0,0.00022739,3]
[329805865,1718682680360,-500.0,0.00022739,3]
[329805866,1718682680369,-500.0,0.00022739,3]
[329805867,1718682680378,-184.28430178,0.00022739,3]
[329805868,1718682680389,-500.0,0.00022739,3]
[329805869,1718682680398,-543.04790814,0.00022739,3]
[329805870,1718682680407,-500.0,0.00022739,3]
[329805871,1718682680417,-500.0,0.00022739,3]
[329805872,1718682680426,-500.0,0.00022739,3]
[329805873,1718682680435,-500.0,0.00022739,3]
[329805874,1718682680445,-500.0,0.00022739,3]
[329805875,1718682680454,-500.0,0.00022739,3]
[329805876,1718682680464,-500.0,0.00022739,3]
[329805877,1718682680475,-500.0,0.00022739,3]
[329805878,1718682680483,-500.0,0.00022739,3]
[329805879,1718682680492,-500.0,0.00022739,3]
[329805880,1718682680501,-655.54,0.00022739,3]
[329805881,1718682680510,-500.0,0.00022739,3]
[329805882,1718682680520,-500.0,0.00022739,3]
[329805883,1718682680529,-500.0,0.00022739,3]
[329805884,1718682680539,-500.0,0.00022739,3]
[329805885,1718682680549,-500.0,0.00022739,3]
[329805886,1718682680558,-500.0,0.00022739,3]
[329805887,1718682680568,-500.0,0.00022739,3]
[329805888,1718682680578,-500.0,0.00022739,3]
[329805889,1718682680588,-500.0,0.00022739,3]
[329805890,1718682680598,-500.0,0.00022739,3]
[329805891,1718682680608,-335.64010929,0.00022739,3]
[329805892,1718682680618,-500.0,0.00022739,3]
[329805893,1718682680628,-500.0,0.00022739,3]
[329805894,1718682680638,-500.0,0.00022739,3]
[329805895,1718682680648,-572.25,0.00022739,3]
[329805896,1718682680658,-529.43855863,0.00022739,3]
[329805897,1718682680668,-500.0,0.00022739,3]
[329805898,1718682680678,-500.0,0.00022739,3]
[329805899,1718682680687,-500.0,0.00022739,3]
[329805900,1718682680697,-500.0,0.00022739,3]
[329805901,1718682680706,-531.18,0.00022739,3]
[329805902,1718682680716,-500.0,0.00022739,3]
[329805903,1718682680728,-526.80996783,0.00022739,3]
[329805904,1718682680737,-500.0,0.00022739,3]
[329805905,1718682680748,-456.56908558,0.00022739,3]
[329805906,1718682680757,-551.66663056,0.00022739,3]
[329805907,1718682680767,-500.0,0.00022739,3]
[329805908,1718682680776,-500.0,0.00022739,3]
[329805909,1718682680786,-500.0,0.00022739,3]
[329805910,1718682680797,-500.0,0.00022739,3]
[329805911,1718682680807,-500.0,0.00022739,3]
[329805912,1718682680816,-1147.52,0.00022739,3]
[329805913,1718682680826,-500.0,0.00022739,3]
[329805914,1718682680836,-500.0,0.00022739,3]
[329805915,1718682680847,-554.70081972,0.00022739,3]
[329805916,1718682680856,-668.76,0.00022739,3]
[329805917,1718682680866,-500.0,0.00022739,3]
[329805918,1718682680876,-500.0,0.00022739,3]
[329805919,1718682680886,-500.0,0.00022739,3]
[329805920,1718682680895,-500.0,0.00022739,3]
[329805921,1718682680905,-533.73442248,0.00022739,3]
[329805922,1718682680915,-577.61035611,0.00022739,3]
[329805923,1718682680925,-588.09,0.00022739,3]
[329805924,1718682680936,-500.0,0.00022739,3]
[329805925,1718682680945,-1199.69,0.00022739,3]
[329805926,1718682680955,-677.6,0.00022739,3]
[329805927,1718682680965,-500.0,0.00022739,3]
[329805928,1718682680978,-500.0,0.00022739,3]
[329805929,1718682680987,-500.0,0.00022739,3]
[329805930,1718682680997,-982.81,0.00022739,3]
[329805931,1718682681007,-500.0,0.00022739,3]
[329805932,1718682681017,-500.0,0.00022739,3]
[329805933,1718682681027,-500.0,0.00022739,3]
[329805934,1718682681037,-500.0,0.00022739,3]
[329805935,1718682681046,-500.0,0.00022739,3]
[329805936,1718682681057,-500.0,0.00022739,3]
[329805937,1718682681067,-884.79,0.00022739,3]
[329805938,1718682681077,-500.0,0.00022739,3]
[329805939,1718682681087,-538.16490295,0.00022739,3]
[329805940,1718682681096,-500.0,0.00022739,3]
[329805941,1718682681106,-500.0,0.00022739,3]
[329805942,1718682681116,-533.59,0.00022739,3]
[329805943,1718682681125,-500.0,0.00022739,3]
[329805944,1718682681135,-669.22,0.00022739,3]
[329805945,1718682681145,-500.0,0.00022739,3]
[329805946,1718682681155,-776.29,0.00022739,3]
[329805947,1718682681164,-966.33,0.00022739,3]
[329805948,1718682681174,-937.78,0.00022739,3]
[329805949,1718682681184,-500.0,0.00022739,3]
[329805950,1718682681194,-500.0,0.00022739,3]
[329805951,1718682681204,-571.55,0.00022739,3]
[329805952,1718682681214,-500.0,0.00022739,3]
[329805953,1718682681227,-500.0,0.00022739,3]
[329805954,1718682681236,-689.23,0.00022739,3]
[329805955,1718682681246,-500.0,0.00022739,3]
[329805956,1718682681255,-500.0,0.00022739,3]
[329805957,1718682681265,-1434.89,0.00022739,3]
[329805958,1718682681274,-1127.45,0.00022739,3]
[329805959,1718682681284,-500.0,0.00022739,3]
[329805960,1718682681294,-500.0,0.00022739,3]
[329805961,1718682681307,-500.0,0.00022739,3]
[329805962,1718682681317,-500.0,0.00022739,3]
[329805963,1718682681326,-589.64,0.00022739,3]
[329805964,1718682681336,-500.0,0.00022739,3]
[329805965,1718682681347,-763.04,0.00022739,3]
[329805966,1718682681357,-500.0,0.00022739,3]
[329805967,1718682681367,-619.79,0.00022739,3]
[329805968,1718682681378,-500.0,0.00022739,3]
[329805969,1718682681388,-500.0,0.00022739,3]
[329805970,1718682681397,-505.88684992,0.00022739,3]
[329805971,1718682681407,-1072.62,0.00022739,3]
[329805972,1718682681417,-500.0,0.00022739,3]
[329805973,1718682681427,-871.87,0.00022739,3]
[329805974,1718682681437,-500.0,0.00022739,3]
[329805975,1718682681447,-534.48445398,0.00022739,3]
[329805976,1718682681457,-1043.31,0.00022739,3]
[329805977,1718682681466,-500.0,0.00022739,3]
[329805978,1718682681481,-1155.17,0.00022739,3]
[329805979,1718682681491,-723.23,0.00022739,3]
[329805980,1718682681500,-641.15,0.00022739,3]
[329805981,1718682681509,-500.0,0.00022739,3]
[329805982,1718682681519,-1819.47,0.00022739,3]
[329805983,1718682681528,-1312.66,0.00022739,3]
[329805984,1718682681537,-500.0,0.00022739,3]
[329805985,1718682681547,-976.95,0.00022739,3]
[329805986,1718682681557,-500.0,0.00022739,3]
[329805987,1718682681566,-1147.12,0.00022739,3]
[329805988,1718682681576,-500.0,0.00022739,3]
[329805989,1718682681586,-500.0,0.00022739,3]
[329805990,1718682681596,-580.69,0.00022739,3]
[329805991,1718682681606,-500.0,0.00022739,3]
[329805992,1718682681616,-500.0,0.00022739,3]
[329805993,1718682681626,-745.63,0.00022739,3]
[329805994,1718682681636,-606.01719775,0.00022739,3]
[329805995,1718682681646,-500.0,0.00022739,3]
[329805996,1718682681656,-500.0,0.00022739,3]
[329805997,1718682681666,-500.0,0.00022739,3]
[329805998,1718682681676,-956.1,0.00022739,3]
[329805999,1718682681686,-897.1,0.00022739,3]
[329806000,1718682681696,-1028.47,0.00022739,3]
[329806001,1718682681706,-500.0,0.00022739,3]
[329806002,1718682681716,-806.72,0.00022739,3]
[329806003,1718682681728,-500.0,0.00022739,3]
[329806004,1718682681738,-500.0,0.00022739,3]
[329806005,1718682681747,-777.47,0.00022739,3]
[329806006,1718682681756,-500.0,0.00022739,3]
[329806007,1718682681766,-500.79,0.00022739,3]
[329806008,1718682681777,-857.95,0.00022739,3]
[329806009,1718682681788,-500.0,0.00022739,3]
[329806010,1718682681798,-1203.88,0.00022739,3]
[329806011,1718682681808,-500.0,0.00022739,3]
[329806012,1718682681819,-551.88,0.00022739,3]
[329806013,1718682681828,-500.0,0.00022739,3]
[329806014,1718682681838,-500.0,0.00022739,3]
[329806015,1718682681848,-500.0,0.00022739,3]
[329806016,1718682681858,-500.0,0.00022739,3]
[329806017,1718682681868,-1165.37,0.00022739,3]
[329806018,1718682681878,-1092.79,0.00022739,3]
[329806019,1718682681888,-500.0,0.00022739,3]
[329806020,1718682681898,-500.0,0.00022739,3]
[329806021,1718682681907,-500.0,0.00022739,3]
[329806022,1718682681918,-1160.39,0.00022739,3]
[329806023,1718682681927,-500.0,0.00022739,3]
[329806024,1718682681937,-500.0,0.00022739,3]
[329806025,1718682681947,-500.0,0.00022739,3]
[329806026,1718682681957,-1445.07,0.00022739,3]
[329806027,1718682681967,-1096.45,0.00022739,3]
[329806028,1718682681980,-500.0,0.00022739,3]
[329806029,1718682681990,-611.26557581,0.00022739,3]
[329806030,1718682682000,-601.03,0.00022739,3]
[329806031,1718682682009,-471.41938301,0.00022739,3]
[329806032,1718682682830,-446.97061699,0.00022739,3]
[329806033,1718682682839,-522.64889125,0.00022739,3]
[329806034,1718682682849,-500.0,0.00022739,3]
[329806035,1718682682859,-500.0,0.00022739,3]
[329806036,1718682682868,-500.0,0.00022739,3]
[329806037,1718682682878,-741.37,0.00022739,3]
[329806038,1718682682888,-500.0,0.00022739,3]
[329806039,1718682682898,-500.0,0.00022739,3]
[329806040,1718682682907,-997.2,0.00022739,3]
[329806041,1718682682917,-500.0,0.00022739,3]
[329806042,1718682682926,-500.0,0.00022739,3]
[329806043,1718682682936,-604.65,0.00022739,3]
[329806044,1718682682946,-672.92,0.00022739,3]
[329806045,1718682682955,-500.0,0.00022739,3]
[329806046,1718682682965,-500.0,0.00022739,3]
[329806047,1718682682977,-840.58,0.00022739,3]
[329806048,1718682682987,-500.0,0.00022739,3]
[329806049,1718682682996,-500.0,0.00022739,3]
[329806050,1718682683006,-951.65,0.00022739,3]
[329806051,1718682683016,-500.0,0.00022739,3]
[329806052,1718682683025,-500.0,0.00022739,3]
[329806053,1718682683035,-500.0,0.00022739,3]
[329806054,1718682683044,-1128.31,0.00022739,3]
[329806055,1718682683055,-500.0,0.00022739,3]
[329806056,1718682683064,-500.0,0.00022739,3]
[329806057,1718682683074,-500.0,0.00022739,3]
[329806058,1718682683084,-686.53,0.00022739,3]
[329806059,1718682683093,-500.0,0.00022739,3]
[329806060,1718682683102,-500.0,0.00022739,3]
[329806061,1718682683112,-500.0,0.00022739,3]
[329806062,1718682683121,-555.4,0.00022739,3]
[329806063,1718682683131,-500.0,0.00022739,3]
[329806064,1718682683140,-752.13,0.00022739,3]
[329806065,1718682683150,-500.0,0.00022739,3]
[329806066,1718682683159,-500.0,0.00022739,3]
[329806067,1718682683169,-500.0,0.00022739,3]
[329806068,1718682683178,-500.0,0.00022739,3]
[329806069,1718682683188,-500.0,0.00022739,3]
[329806070,1718682683197,-806.82,0.00022739,3]
[329806071,1718682683208,-500.0,0.00022739,3]
[329806072,1718682683217,-500.0,0.00022739,3]
[329806073,1718682683229,-500.0,0.00022739,3]
[329806074,1718682683238,-500.0,0.00022739,3]
[329806075,1718682683248,-691.76,0.00022739,3]
[329806076,1718682683258,-500.0,0.00022739,3]
[329806077,1718682683267,-347.59084677,0.00022739,3]
[329806078,1718682683277,-1062.73,0.00022739,3]
[329806079,1718682683287,-618.45,0.00022739,3]
[329806080,1718682683297,-500.0,0.00022739,3]
[329806081,1718682683311,-500.0,0.00022739,3]
[329806082,1718682683321,-500.0,0.00022739,3]
[329806083,1718682683331,-500.0,0.00022739,3]
[329806084,1718682683342,-500.0,0.00022739,3]
[329806085,1718682683351,-500.0,0.00022739,3]
[329806086,1718682683361,-805.26,0.00022739,3]
[329806087,1718682683371,-927.54,0.00022739,3]
[329806088,1718682683382,-1584.26,0.00022739,3]
[329806089,1718682683391,-539.37125098,0.00022739,3]
[329806090,1718682683401,-719.72,0.00022739,3]
[329806091,1718682683410,-500.0,0.00022739,3]
[329806092,1718682683420,-500.0,0.00022739,3]
[329806093,1718682683430,-615.73,0.00022739,3]
[329806094,1718682683439,-500.0,0.00022739,3]
[329806095,1718682683449,-500.0,0.00022739,3]
[329806096,1718682683459,-500.0,0.00022739,3]
[329806097,1718682683468,-1051.47,0.00022739,3]
[329806098,1718682683480,-500.0,0.00022739,3]
[329806099,1718682683489,-500.0,0.00022739,3]
[329806100,1718682683498,-500.0,0.00022739,3]
[329806101,1718682683508,-1207.85,0.00022739,3]
[329806102,1718682683517,-500.0,0.00022739,3]
[329806103,1718682683526,-523.91,0.00022739,3]
[329806104,1718682683535,-858.56,0.00022739,3]
[329806105,1718682683545,-500.0,0.00022739,3]
[329806106,1718682683554,-732.3,0.00022739,3]
[329806107,1718682683564,-500.0,0.00022739,3]
[329806108,1718682683574,-708.91,0.00022739,3]
[329806109,1718682683583,-1176.98,0.00022739,3]
[329806110,1718682683593,-500.0,0.00022739,3]
[329806111,1718682683602,-1365.46,0.00022739,3]
[329806112,1718682683612,-500.0,0.00022739,3]
[329806113,1718682683621,-500.0,0.00022739,3]
[329806114,1718682683630,-847.87,0.00022739,3]
[329806115,1718682683639,-154.47399151,0.00022739,3]
[329806116,1718682683648,-1167.27,0.00022739,3]
[329806117,1718682683658,-501.48580697,0.00022739,3]
[329806118,1718682683667,-500.0,0.00022739,3]
[329806119,1718682683677,-584.07,0.00022739,3]
[329806120,1718682683686,-500.0,0.00022739,3]
[329806121,1718682683696,-500.0,0.00022739,3]
[329806122,1718682683705,-500.0,0.00022739,3]
[329806123,1718682683715,-530.73,0.00022739,3]
[329806124,1718682683726,-1857.83,0.00022739,3]
[329806125,1718682683736,-500.0,0.00022739,3]
[329806126,1718682683746,-500.0,0.00022739,3]
[329806127,1718682683756,-500.0,0.00022739,3]
[329806128,1718682683766,-1197.75,0.00022739,3]
[329806129,1718682683776,-500.0,0.00022739,3]
[329806130,1718682683785,-747.26,0.00022739,3]
[329806131,1718682683797,-500.0,0.00022739,3]
[329806132,1718682683806,-500.0,0.00022739,3]
[329806133,1718682683816,-500.0,0.00022739,3]
[329806134,1718682683826,-500.0,0.00022739,3]
[329806135,1718682683836,-695.41,0.00022739,3]
[329806136,1718682683847,-1350.0,0.00022739,3]
[329806137,1718682683857,-1251.17,0.00022739,3]
[329806138,1718682683867,-500.0,0.00022739,3]
[329806139,1718682683878,-500.0,0.00022739,3]
[329806140,1718682683890,-500.0,0.00022739,3]
[329806141,1718682683901,-1229.05,0.00022739,3]
[329806142,1718682683912,-250.0,0.00022739,3]
[329806143,1718682683923,-711.01,0.00022739,3]
[329806144,1718682683934,-500.0,0.00022739,3]
[329806145,1718682683945,-585.71,0.00022739,3]
[329806146,1718682683957,-500.0,0.00022739,3]
[329806147,1718682683967,-1207.13,0.00022739,3]
[329806148,1718682683981,-422.1769627,0.00022739,3]
[329806149,1718682683990,-500.0,0.00022739,3]
[329806150,1718682684000,-1485.96,0.00022739,3]
[329806151,1718682684013,-816.11,0.00022739,3]
[329806152,1718682684023,-500.0,0.00022739,3]
[329806153,1718682684033,-361.65,0.00022739,3]
[329806154,1718682684042,-998.58,0.00022739,3]
[329806155,1718682684052,-500.0,0.00022739,3]
[329806156,1718682684062,-500.0,0.00022739,3]
[329806157,1718682684071,-500.0,0.00022739,3]
[329806158,1718682684081,-866.27,0.00022739,3]
[329806159,1718682684091,-500.0,0.00022739,3]
[329806160,1718682684101,-583.88,0.00022739,3]
[329806161,1718682684111,-500.0,0.00022739,3]
[329806162,1718682684120,-500.0,0.00022739,3]
[329806163,1718682684130,-658.8,0.00022739,3]
[329806164,1718682684139,-500.0,0.00022739,3]
[329806165,1718682684148,-500.0,0.00022739,3]
[329806166,1718682684158,-884.98,0.00022739,3]
[329806167,1718682684167,-500.0,0.00022739,3]
[329806168,1718682684177,-508.01823333,0.00022739,3]
[329806169,1718682684187,-500.0,0.00022739,3]
[329806170,1718682684196,-1865.89,0.00022739,3]
[329806171,1718682684206,-500.0,0.00022739,3]
[329806172,1718682684216,-237.11782667,0.00022739,3]
[329806173,1718682684227,-1095.88,0.00022739,3]
[329806174,1718682684237,-500.0,0.00022739,3]
[329806175,1718682684246,-974.31,0.00022739,3]
[329806176,1718682684256,-500.0,0.00022739,3]
[329806177,1718682684265,-500.0,0.00022739,3]
[329806178,1718682684275,-500.0,0.00022739,3]
[329806179,1718682684284,-693.14,0.00022739,3]
[329806180,1718682684294,-500.0,0.00022739,3]
[329806181,1718682684309,-500.0,0.00022739,3]
[329806182,1718682684319,-500.0,0.00022739,3]
[329806183,1718682684329,-500.0,0.00022739,3]
[329806184,1718682684340,-500.0,0.00022739,3]
[329806185,1718682684350,-500.0,0.00022739,3]
[329806186,1718682684360,-500.0,0.00022739,3]
[329806187,1718682684370,-788.79,0.00022739,3]
[329806188,1718682684380,-516.38,0.00022739,3]
[329806189,1718682684390,-500.0,0.00022739,3]
[329806190,1718682684399,-500.0,0.00022739,3]
[329806191,1718682684409,-1338.3,0.00022739,3]
[329806192,1718682684418,-915.98,0.00022739,3]
[329806193,1718682684428,-811.62,0.00022739,3]
[329806194,1718682684438,-977.1,0.00022739,3]
[329806195,1718682684448,-500.0,0.00022739,3]
[329806196,1718682684458,-909.19,0.00022739,3]
[329806197,1718682684468,-500.0,0.00022739,3]
[329806198,1718682684481,-500.0,0.00022739,3]
[329806199,1718682684491,-893.66,0.00022739,3]
[329806200,1718682684500,-500.0,0.00022739,3]
[329806201,1718682684509,-500.0,0.00022739,3]
[329806202,1718682684519,-500.0,0.00022739,3]
[329806203,1718682684529,-534.38789867,0.00022739,3]
[329806204,1718682684539,-1494.28,0.00022739,3]
[329806205,1718682684550,-500.0,0.00022739,3]
[329806206,1718682684560,-539.2699771,0.00022739,3]
[329806207,1718682684569,-500.0,0.00022739,3]
[329806208,1718682684579,-500.0,0.00022739,3]
[329806209,1718682684589,-534.20469424,0.00022739,3]
[329806210,1718682684599,-577.49,0.00022739,3]
[329806211,1718682684609,-500.0,0.00022739,3]
[329806212,1718682684619,-1478.42,0.00022739,3]
[329806213,1718682684628,-506.29729612,0.00022739,3]
[329806214,1718682684638,-500.0,0.00022739,3]
[329806215,1718682684648,-630.69,0.00022739,3]
[329806216,1718682684658,-1042.44,0.00022739,3]
[329806217,1718682684667,-500.0,0.00022739,3]
[329806218,1718682684677,-607.03368442,0.00022739,3]
[329806219,1718682684687,-538.63,0.00022739,3]
[329806220,1718682684696,-798.79,0.00022739,3]
[329806221,1718682684706,-11323.23,0.00022739,3]
[329806222,1718682684715,-500.0,0.00022739,3]
[329806223,1718682684728,-500.0,0.00022739,3]
[329806224,1718682684737,-500.0,0.00022739,3]